fUSD/lending_fUSD_20240704
["ID","MTS","AMOUNT","RATE_DAILY","PERIOD"]
[331070466,1720062644539,-156.24002164,0.00014899,2]
[331070468,1720062644551,-363.9757235,0.00014899,2]
[331070470,1720062644560,-235.30745469,0.00014899,2]
[331070472,1720062644571,-483.56532851,0.00014899,2]
[331070474,1720062644581,-155.4096973,0.00014899,2]
[331070476,1720062644593,-481.07477668,0.00014899,2]
[331070478,1720062644602,-163.63235046,0.00014899,2]
[331070480,1720062644612,-155.70014147,0.00014899,2]
[331070482,1720062644626,-163.998128,0.00014966,2]
[331070484,1720062644634,-155.49048688,0.00014966,2]
[331070486,1720062644644,-201.13710541,0.00014966,2]
[331070488,1720062644654,-333.11290162,0.00014973,2]
[331070490,1720062644663,-155.50046302,0.00014973,2]
[331070492,1720062644672,-689.4,0.00014995,2]
[331070495,1720062644682,-3410.76172381,0.00015,2]
[331070497,1720062644692,-84494.8167906,0.00015,2]
[331070499,1720062644701,-694.44875942,0.00015,2]
[331070501,1720062644714,-4075.19173182,0.00015,2]
[331070503,1720062644723,-477.075757,0.00015,2]
[331070505,1720062644732,-477.075757,0.00015,2]
[331070507,1720062644742,-151.0,0.00015,2]
[331070509,1720062644751,-156.690812,0.00015,2]
[331070511,1720062644761,-151.0,0.00015,2]
[331070513,1720062644770,-159.396726,0.00015068,2]
[331070515,1720062644779,-155.30213318,0.00015166,2]
[331070517,1720062644789,-372.22978129,0.00015183,2]
[331070519,1720062644798,-155.19544578,0.00015335,2]
[331070521,1720062644807,-3366.46663098,0.000154,3]
[331070523,1720062644818,-48.53336902,0.000154,3]
[331070525,1720062644827,-831.02728288,0.00015565,2]
[331070527,1720062644841,-1979.52073409,0.00015565,2]
[331070529,1720062644850,-596.11426043,0.000156,2]
[331070531,1720062644858,-151.0,0.0001569,2]
[331070533,1720062644867,-151.0,0.0001569,2]
[331070535,1720062644876,-6.06553231,0.0001569,2]
[331070759,1720062647082,-346.5178534,0.00014393,2]
[331070761,1720062647099,-262.49689379,0.00014499,2]
[331070763,1720062647108,-144.93446769,0.0001569,2]
[331070765,1720062647117,-151.0,0.0001569,2]
[331070767,1720062647126,-151.0,0.0001569,2]
[331070769,1720062647136,-153.560193,0.0001569,2]
[331070771,1720062647145,-704.15,0.0001569,2]
[331070773,1720062647155,-919.09080953,0.00015789,2]
[331070775,1720062647164,-11483.0,0.000158,5]
[331070777,1720062647174,-159.396726,0.0001589,2]
[331070779,1720062647183,-865.54630303,0.00016256,2]
[331070781,1720062647192,-865.54630303,0.00016256,2]
[331070783,1720062647203,-1483.43938,0.0001636,2]
[331070785,1720062647213,-2810.54801697,0.00016379,2]
[331070787,1720062647222,-174.81,0.00016397,2]
[331070789,1720062647230,-372.22978129,0.00016468,2]
[331070791,1720062647240,-689.4,0.00016661,2]
[331070793,1720062647249,-2000.62,0.00016706,2]
[331070795,1720062647258,-159.396726,0.00016712,2]
[331070797,1720062647267,-919.09080953,0.00016803,2]
[331070799,1720062647276,-2810.54801697,0.00017193,2]
[331070801,1720062647285,-596.11426043,0.000173,2]
[331070803,1720062647295,-200.01,0.00017521,2]
[331070805,1720062647304,-159.396726,0.00017534,2]
[331070807,1720062647313,-372.22978129,0.00017752,2]
[331070810,1720062647323,-177.47,0.0001778,2]
[331070811,1720062647332,-919.09080953,0.00017818,2]
[331070814,1720062647346,-704.15,0.00017954,2]
[331070816,1720062647355,-414.02655178,0.00018,2]
[331070818,1720062647364,-2810.54801697,0.00018007,2]
[331070820,1720062647373,-1000.0,0.00018044,2]
[331070822,1720062647382,-174.57,0.00018224,2]
[331070824,1720062647391,-689.4,0.00018327,2]
[331070826,1720062647400,-159.396726,0.00018356,2]
[331070828,1720062647409,-2810.54801697,0.0001882,2]
[331070830,1720062647418,-1483.43938,0.0001886,2]
[331070832,1720062647427,-427.18,0.00018877,2]
[331070834,1720062647436,-354.88,0.00018877,2]
[331070836,1720062647445,-164.87,0.00018877,2]
[331070838,1720062647455,-150.0,0.00018877,2]
[331070840,1720062647468,-300.0,0.00018877,2]
[331070842,1720062647477,-150.0,0.00018877,2]
[331070844,1720062647487,-528.5,0.00018877,2]
[331070846,1720062647496,-150.0,0.00018877,2]
[331070848,1720062647507,-150.0,0.00018877,2]
[331070850,1720062647516,-528.5,0.00018877,2]
[331070852,1720062647526,-150.0,0.00018877,2]
[331070854,1720062647535,-150.0,0.00018877,2]
[331070856,1720062647547,-354.88,0.00018877,2]
[331070858,1720062647558,-164.87,0.00018877,2]
[331070861,1720062647579,-424.37,0.00018877,2]
[331070863,1720062647591,-300.27,0.00018877,2]
[331070865,1720062647600,-164.87,0.00018877,2]
[331070867,1720062647610,-150.0,0.00018877,2]
[331070869,1720062647620,-424.37,0.00018877,2]
[331070871,1720062647629,-354.88,0.00018877,2]
[331070873,1720062647639,-150.0,0.00018877,2]
[331070875,1720062647648,-164.87,0.00018877,2]
[331070877,1720062647658,-281.33,0.00018877,2]
[331070879,1720062647667,-150.0,0.00018877,2]
[331070881,1720062647678,-150.0,0.00018877,2]
[331070883,1720062647687,-159.06,0.000189,2]
[331070886,1720062647697,-596.11426043,0.00019,2]
[331070888,1720062647707,-300.0,0.00019,2]
[331070890,1720062647716,-372.22978129,0.00019037,2]
[331070892,1720062647726,-155.0,0.00019069,2]
[331070894,1720062647735,-1046.19,0.00019151,2]
[331070896,1720062647745,-250.0,0.00019178,2]
[331070898,1720062647755,-159.396726,0.00019178,2]
[331070900,1720062647765,-271.97752949,0.00019229,2]
[331070902,1720062647774,-630.74011,0.000193,2]
[331070904,1720062647784,-916.16043123,0.00019451,2]
[331070906,1720062647793,-1807.86151854,0.000195,2]
[331070908,1720062647803,-596.315,0.00019539,2]
[331070909,1720062647813,-152.0,0.00019584,3]
[331070912,1720062647822,-1207.665,0.00019599,2]
[331070914,1720062647832,-2810.54801697,0.00019634,2]
[331070915,1720062647842,-174.81,0.00019677,2]
[331070917,1720062647851,-164.62,0.00019699,2]
[331070920,1720062647861,-150.0,0.00019699,2]
[331070922,1720062647871,-150.0,0.00019699,2]
[331070924,1720062647880,-151.0,0.00019699,2]
[331070926,1720062647890,-151.0,0.00019699,2]
[331070928,1720062647900,-200.01,0.00019711,2]
[331070930,1720062647910,-1659.0,0.000198,3]
[331070932,1720062647919,-151.0,0.000198,2]
[331070934,1720062647929,-151.0,0.000198,2]
[331070936,1720062647938,-200.03538,0.00019893,2]
[331070938,1720062647948,-200.03538,0.00019893,2]
[331070940,1720062647958,-340.41482893,0.00019899,2]
[331070942,1720062647968,-150.29,0.00019919,2]
[331070944,1720062647977,-227.1,0.00019919,2]
[331070946,1720062647987,-689.4,0.00019993,2]
[331070948,1720062647996,-6607.87682345,0.0002,2]
[331070950,1720062648006,-550.32585092,0.0002,2]
[331070952,1720062648016,-1363.54098633,0.0002,2]
[331070954,1720062648025,-12000.0,0.0002,2]
[331070956,1720062648035,-870.46224466,0.0002,2]
[331070958,1720062648044,-151.0,0.0002,2]
[331070960,1720062648054,-151.0,0.0002,2]
[331070962,1720062648064,-151.0,0.0002,2]
[331070964,1720062648074,-159.396726,0.0002,2]
[331070967,1720062648088,-854.2,0.0002011,2]
[331070969,1720062648098,-854.2,0.0002011,2]
[331070971,1720062648107,-1857.36520596,0.000202,2]
[331070973,1720062648117,-477.075757,0.000202,2]
[331070975,1720062648127,-477.075757,0.000202,2]
[331070977,1720062648137,-704.15,0.00020218,2]
[331070979,1720062648147,-521.0,0.000203,3]
[331070981,1720062648156,-200.442113,0.00020347,2]
[331070983,1720062648166,-2810.54801697,0.00020448,2]
[331070985,1720062648175,-6819.85054527,0.0002068,2]
[331070987,1720062648185,-596.11426043,0.000207,2]
[331070989,1720062648195,-2000.0,0.000207,7]
[331070991,1720062648204,-152.0,0.00020729,4]
[331070993,1720062648214,-292.689607,0.000208,2]
[331070995,1720062648223,-200.03538,0.000208,2]
[331070997,1720062648233,-200.03538,0.000208,2]
[331071000,1720062648243,-2700.0,0.000208,7]
[331071002,1720062648252,-477.075757,0.000208,2]
[331071004,1720062648261,-477.075757,0.000208,2]
[331071006,1720062648270,-234317.82814096,0.000208,3]
[331071008,1720062648285,-270.462826,0.000208,3]
[331071009,1720062648296,-819.48864063,0.000208,3]
[331071010,1720062648307,-1087.44259881,0.000208,3]
[331071011,1720062648319,-3436.1285012,0.000208,3]
[331071426,1720062812858,187.93110987,0.00013472,2]
[331071427,1720062833743,264.56470044,0.00013472,2]
[331071428,1720063099088,47.50418969,0.00011199,2]
[331071429,1720063099124,2323.12,0.00011199,2]
[331071430,1720063099158,2546.54,0.00011199,2]
[331071431,1720063099190,2744.65514316,0.00011199,2]
[331071432,1720063099528,2546.54,0.00011199,2]
[331071433,1720063099561,2865.18598654,0.00011199,2]
[331071434,1720063099591,2316.3762719,0.00011199,2]
[331071435,1720063099622,2510.31,0.00011199,2]
[331071436,1720063099652,2546.54,0.00011199,2]
[331071437,1720063099682,500.0,0.00011199,2]
[331071438,1720063099713,2483.6237281,0.00011199,2]
[331071439,1720063099746,2500.0,0.00011199,2]
[331071440,1720063099780,3223.82858134,0.00011199,2]
[331071441,1720063099810,2978.0574796,0.00011199,2]
[331071442,1720063099839,2367.05112983,0.00011199,2]
[331071443,1720063099862,91660.73026693,0.00011199,2]
[331071447,1720063555407,4493.9188622,0.00011199,2]
[331071482,1720063801300,10082.13326121,0.00011199,2]
[331071483,1720063801797,1903.03082168,0.00011199,2]
[331071486,1720063832916,-510.3000105,0.00013472,2]
[331071489,1720063832933,-726.48604474,0.00013472,2]
[331071492,1720063832953,-501.08,0.00013472,2]
[331071493,1720063832968,-1000.0,0.00013472,2]
[331071494,1720063832986,-757.21613236,0.00013472,2]
[331071495,1720063833003,-388.88750137,0.00013472,2]
[331071496,1720063833020,-1801.40392299,0.00013472,2]
[331071497,1720063833036,-767.18808495,0.00013472,2]
[331071498,1720063833048,-549.80051246,0.00013574,2]
[331071499,1720063833060,-169.08,0.00014189,2]
[331071500,1720063833071,-413.0,0.000158,5]
[331071501,1720063833082,-574.63140259,0.00015935,2]
[331071502,1720063838745,-44.35859741,0.00015935,2]
[331071505,1720063838760,-160.55280853,0.00016,2]
[331071507,1720063838770,-3074.13216953,0.00017533,2]
[331071509,1720063838780,-3274.55,0.00017606,2]
[331071511,1720063838791,-1162.65870925,0.00017703,2]
[331071513,1720063838805,-1500.0,0.00017703,2]
[331071516,1720063838817,-879.50241148,0.00017703,2]
[331071518,1720063838829,-885.645,0.00017703,2]
[331071520,1720063838844,-11132.05387927,0.00017703,2]
[331071522,1720063838855,-1236.89,0.00017741,2]
[331071524,1720063838865,-1720.04,0.00017748,2]
[331071525,1720063838875,-8471.59517118,0.00017822,2]
[331071526,1720063838888,-4572.78453988,0.00017822,2]
[331071527,1720063838900,-1028.83503042,0.00017822,2]
[331071528,1720063838912,-500.37717444,0.00017822,2]
[331071529,1720063838925,-1613.77719913,0.00017822,2]
[331071530,1720063838984,-1878.59088495,0.00017822,2]
[331071531,1720063838994,-2751.0,0.00017852,2]
[331071532,1720063839004,-10000.0,0.00017874,2]
[331071533,1720063839013,-499.99,0.00017874,2]
[331071534,1720063839023,-200.0,0.00017877,2]
[331071535,1720063839033,-500.0,0.00017906,2]
[331071536,1720063839043,-250.0,0.00017966,2]
[331071537,1720063839054,-941.62,0.00018174,2]
[331071538,1720063839065,-250.0,0.00018177,2]
[331071539,1720063839076,-618.99,0.00018198,2]
[331071540,1720063839086,-501.81,0.00018293,2]
[331071541,1720063839097,-501.81,0.00018343,2]
[331071542,1720063839109,-501.81,0.00018393,2]
[331071543,1720063839119,-501.81,0.00018443,2]
[331071544,1720063839130,-501.81,0.00018494,2]
[331071545,1720063839140,-501.81,0.00018544,2]
[331071546,1720063839150,-501.81,0.00018594,2]
[331071547,1720063839161,-501.81,0.00018644,2]
[331071548,1720063839171,-1016.47627032,0.00018649,2]
[331071549,1720063839181,-501.81,0.00018694,2]
[331071550,1720063839191,-501.81,0.00018744,2]
[331071551,1720063839202,-501.81,0.00018795,2]
[331071552,1720063839212,-501.81,0.00018845,2]
[331071553,1720063839222,-736.263,0.00018845,2]
[331071554,1720063839232,-3128.7933199,0.00018865,2]
[331071555,1720063839242,-258.7944,0.00018875,2]
[331071556,1720063839253,-3768.4263,0.00018875,2]
[331071557,1720063839263,-8271.30148156,0.0001888,2]
[331071558,1720063839273,-152.36272025,0.00018888,2]
[331071559,1720063839286,-150.0,0.00018888,2]
[331071560,1720063839296,-501.81,0.00018895,2]
[331071561,1720063839306,-319.28013051,0.00018899,2]
[331071562,1720063839316,-721.36501093,0.00018899,2]
[331071563,1720063839326,-243.39698185,0.00018899,2]
[331071564,1720063839336,-186.84675823,0.00018899,2]
[331071565,1720063839346,-318.04177963,0.00018919,2]
[331071566,1720063839357,-378.99757637,0.00018919,2]
[331071567,1720063839366,-464.54602431,0.00018919,2]
[331071568,1720063839376,-227.14852012,0.00018919,2]
[331071569,1720063839386,-3920.13,0.00018925,2]
[331071570,1720063839397,-3920.13,0.0001893,2]
[331071571,1720063839408,-401.52,0.0001893,2]
[331071572,1720063839418,-1095.86927538,0.00018935,2]
[331071573,1720063839496,-2824.26072462,0.00018935,2]
[331071574,1720063839507,-240.99901965,0.0001894,2]
[331071575,1720063839519,-2989.18811094,0.0001894,2]
[331071576,1720063839530,-3385.96953395,0.0001894,2]
[331071577,1720063839543,-14719.57095998,0.0001894,2]
[331071578,1720063839553,-3920.13,0.0001894,2]
[331071579,1720063839563,-3920.13,0.00018945,2]
[331071580,1720063839573,-501.81,0.00018945,2]
[331071581,1720063839582,-3920.13,0.0001895,2]
[331071582,1720063839592,-3920.13,0.00018955,2]
[331071583,1720063839602,-3920.13,0.0001896,2]
[331071584,1720063839614,-3920.13,0.00018965,2]
[331071585,1720063839629,-3920.13,0.0001897,2]
[331071586,1720063839640,-3920.13,0.00018975,2]
[331071587,1720063839650,-3920.13,0.0001898,2]
[331071588,1720063839661,-3920.13,0.00018985,2]
[331071589,1720063839671,-3920.13,0.0001899,2]
[331071590,1720063839682,-3920.13,0.00018995,2]
[331071591,1720063839693,-501.81,0.00018995,2]
[331071592,1720063839703,-269.66585557,0.00018999,2]
[331071593,1720063839713,-3920.13,0.00019,2]
[331071594,1720063839723,-1250.0,0.00019,2]
[331071595,1720063839733,-2405.46549977,0.00019,2]
[331071596,1720063839743,-3920.13,0.00019005,2]
[331071597,1720063839753,-3920.13,0.0001901,2]
[331071598,1720063839763,-3920.13,0.00019015,2]
[331071599,1720063839773,-3920.13,0.0001902,2]
[331071600,1720063839783,-501.81,0.00019045,2]
[331071601,1720063839793,-169.74,0.00019068,2]
[331071602,1720063839803,-269.66585557,0.00019069,2]
[331071603,1720063839813,-155.0,0.00019077,2]
[331071604,1720063839823,-501.81,0.00019096,2]
[331071605,1720063839833,-501.81,0.00019146,2]
[331071606,1720063839847,-189.78,0.00019178,2]
[331071607,1720063839858,-501.81,0.00019196,2]
[331071608,1720063839868,-172.46,0.00019197,2]
[331071609,1720063839879,-48026.0,0.00019201,2]
[331071610,1720063839889,-501.81,0.00019246,2]
[331071611,1720063839898,-3128.79331985,0.00019312,2]
[331071612,1720063839908,-8271.30148148,0.00019326,2]
[331071613,1720063839921,-520.01,0.00019399,2]
[331071614,1720063839932,-155.0,0.00019399,2]
[331071615,1720063839941,-459.908,0.00019427,2]
[331071616,1720063839951,-362.018,0.00019427,2]
[331071617,1720063839962,-1838.406,0.00019427,2]
[331071618,1720063839972,-166.995,0.00019427,2]
[331071619,1720063839982,-450.077,0.00019427,2]
[331071620,1720063839992,-2500.0,0.000195,2]
[331071621,1720063840003,-3128.79331985,0.00019759,2]
[331071622,1720063840013,-8271.30148148,0.00019771,2]
[331071623,1720063840024,-401.52,0.00019877,2]
[331071624,1720063840034,-150.0,0.00019937,4]
[331071625,1720063840044,-2023.04568859,0.000202,2]
[331071626,1720063840055,-3128.79331985,0.00020207,2]
[331071627,1720063840066,-8271.30148148,0.00020217,2]
[331071628,1720063840077,-232.997428,0.00020347,2]
[331071629,1720063840087,-1145.440627,0.00020347,2]
[331071630,1720063840097,-808.120304,0.00020347,2]
[331071631,1720063840108,-698.992285,0.00020347,2]
[331071632,1720063840118,-618.99,0.00020462,2]
[331071633,1720063840128,-1156.422,0.00020499,2]
[331071634,1720063840138,-159.52704915,0.000205,2]
[331071635,1720063840148,-876.74,0.00020521,2]
[331071636,1720063840158,-837.5,0.00020521,2]
[331071637,1720063840168,-301.64,0.00020521,2]
[331071638,1720063840179,-167.13,0.00020521,2]
[331071639,1720063840189,-714.79,0.00020521,2]
[331071640,1720063840201,-741.71969,0.0002059,2]
[331071641,1720063840211,-958.5929,0.000206,2]
[331071642,1720063840221,-4834.9213,0.000206,2]
[331071643,1720063840231,-156.80521674,0.000206,2]
[331071644,1720063840241,-400.0,0.000206,7]
[331071645,1720063840251,-326.65097094,0.000206,2]
[331071646,1720063840262,-232.997428,0.00020601,2]
[331071647,1720063840272,-1145.440627,0.00020601,2]
[331071648,1720063840282,-808.120304,0.00020601,2]
[331071649,1720063840292,-698.992285,0.00020601,2]
[331071650,1720063840309,-3128.79331985,0.00020654,2]
[331071651,1720063840323,-8271.30148148,0.00020662,2]
[331071652,1720063840333,-156.80521673,0.00020675,2]
[331071653,1720063840344,-159.07,0.0002069,2]
[331071654,1720063840355,-4053.636,0.000207,2]
[331071656,1720063840365,-13621.61425842,0.000207,2]
[331071658,1720063840381,-2637.04320672,0.000207,2]
[331071709,1720063840856,-817.164,0.00019427,2]
[331071712,1720063840868,-83741.34253486,0.000207,2]
[331071716,1720063840879,-72271.4441,0.000207,2]
[331071719,1720063840889,-1000.0,0.000207,2]
[331071721,1720063840899,-9102.177,0.000207,2]
[331071723,1720063840909,-321.9592,0.000207,2]
[331071725,1720063840919,-5402.3655,0.000207,2]
[331071727,1720063840932,-4164.7833,0.000207,2]
[331071729,1720063840944,-203.79493447,0.000207,2]
[331071731,1720063840956,-800.0,0.000207,7]
[331071733,1720063840966,-991.83236074,0.000207,2]
[331071735,1720063840977,-500.0,0.00020708,2]
[331071737,1720063840988,-2284.23633545,0.00020737,2]
[331071739,1720063840998,-156.80521673,0.0002075,2]
[331071741,1720063841008,-289.02897465,0.00020784,2]
[331071743,1720063841018,-166398.1427809,0.00020794,2]
[331071746,1720063841028,-151.0,0.00020794,2]
[331071748,1720063841038,-151.0,0.00020794,2]
[331071750,1720063841049,-550.6201206,0.000208,2]
[331071752,1720063841059,-201.00895847,0.000208,2]
[331071754,1720063841069,-105136.54737475,0.000208,2]
[331071756,1720063841079,-581.59379688,0.000208,2]
[331071758,1720063841089,-448.25498222,0.000208,2]
[331071760,1720063841099,-21233.19679921,0.000208,2]
[331071762,1720063841111,-245000.0,0.000208,2]
[331071764,1720063841121,-2000.0,0.000208,2]
[331071766,1720063841131,-200.0,0.000208,2]
[331071768,1720063841142,-167.88520027,0.000208,2]
[331071770,1720063841152,-151.0,0.000208,2]
[331071772,1720063841163,-152.484348,0.000208,2]
[331071774,1720063841173,-151.0,0.000208,2]
[331071776,1720063841183,-151.0,0.000208,2]
[331071778,1720063841194,-151.0,0.000208,2]
[331071780,1720063841204,-203.775798,0.000208,2]
[331071782,1720063841214,-162.914784,0.000208,2]
[331071785,1720063841228,-151.0,0.000208,2]
[331071787,1720063841237,-151.0,0.000208,2]
[331071789,1720063841248,-151.0,0.000208,2]
[331071791,1720063841258,-151.0,0.000208,2]
[331071793,1720063841268,-151.0,0.000208,2]
[331071795,1720063841278,-151.0,0.000208,2]
[331071797,1720063841288,-151.0,0.000208,2]
[331071799,1720063841298,-151.0,0.000208,2]
[331071801,1720063841308,-151.0,0.000208,2]
[331071803,1720063841319,-151.0,0.000208,2]
[331071805,1720063841329,-151.0,0.000208,2]
[331071807,1720063841339,-154.439094,0.000208,2]
[331071810,1720063841349,-151.0,0.000208,2]
[331071812,1720063841360,-265.95498,0.000208,2]
[331071814,1720063841370,-175.128304,0.000208,2]
[331071816,1720063841381,-175.128304,0.000208,2]
[331071818,1720063841392,-1200.0,0.000208,7]
[331071820,1720063841402,-151.0,0.000208,2]
[331071822,1720063841412,-364.15303,0.000208,2]
[331071824,1720063841423,-364.15303,0.000208,2]
[331071826,1720063841433,-151.0,0.000208,2]
[331071828,1720063841443,-151.0,0.000208,2]
[331071831,1720063841454,-303220.360843,0.000208,3]
[331071833,1720063841464,-151.0,0.000208,2]
[331071835,1720063841474,-151.0,0.000208,2]
[331071837,1720063841484,-193.64646,0.000208,2]
[331071839,1720063841494,-218.913988,0.000208,2]
[331071841,1720063841504,-151.0,0.000208,2]
[331071843,1720063841514,-152.354913,0.000208,2]
[331071845,1720063841523,-151.0,0.000208,2]
[331071847,1720063841533,-151.0,0.000208,2]
[331071849,1720063841543,-151.0,0.000208,2]
[331071851,1720063841554,-151.0,0.000208,2]
[331071853,1720063841564,-151.0,0.00020808,2]
[331071855,1720063841575,-401.52,0.00020823,2]
[331071858,1720063841585,-156.80521673,0.00020825,2]
[331071860,1720063841595,-232.997428,0.00020855,2]
[331071862,1720063841606,-1145.440627,0.00020855,2]
[331071864,1720063841616,-808.120304,0.00020855,2]
[331071866,1720063841626,-698.992285,0.00020855,2]
[331071868,1720063841636,-159.52704912,0.00020898,2]
[331071870,1720063841646,-991.83236074,0.00020899,2]
[331071872,1720063841656,-151.0,0.000209,2]
[331071874,1720063841666,-151.0,0.000209,2]
[331071876,1720063841676,-156.80521673,0.000209,2]
[331071878,1720063841686,-151.0,0.000209,2]
[331071880,1720063841696,-151.0,0.000209,2]
[331071882,1720063841706,-175.128304,0.000209,2]
[331071884,1720063841715,-175.128304,0.000209,2]
[331071886,1720063841725,-1600.0,0.000209,7]
[331071889,1720063841735,-151.0,0.000209,2]
[331071891,1720063841745,-364.15303,0.000209,2]
[331071893,1720063841757,-364.15303,0.000209,2]
[331071895,1720063841767,-151.0,0.000209,2]
[331071897,1720063841776,-66137.7868341,0.000209,3]
[331071899,1720063841786,-151.0,0.000209,2]
[331071901,1720063841796,-151.0,0.000209,2]
[331071903,1720063841806,-190.26350175,0.000209,2]
[331071905,1720063841816,-663.12588482,0.000209,2]
[331071907,1720063841826,-2693.10870118,0.000209,2]
[331071909,1720063841837,-204.47380482,0.000209,2]
[331071911,1720063841851,-151.35687416,0.00020986,4]
[331071913,1720063841861,-151.0,0.0002099,2]
[331071915,1720063841871,-289.02897465,0.0002099,2]
[331071917,1720063841883,-14325.6134571,0.00020993,2]
[331071919,1720063841894,-2810.9057269,0.00020993,2]
[331071921,1720063841907,-4214.2638828,0.00020994,2]
[331071923,1720063841918,-3469.976491,0.00020999,2]
[331071925,1720063841929,-150.0,0.00020999,2]
[331071927,1720063841939,-1173532.60763428,0.00021,2]
[331071929,1720063841950,-618.19124281,0.00021,2]
[331071931,1720063841961,-198079.7171122,0.00021,3]
[331071933,1720063841971,-18312.85363411,0.00021,2]
[331071935,1720063841981,-226.38715365,0.00021,2]
[331071937,1720063841992,-1300.0,0.00021,2]
[331071940,1720063842002,-278.645541,0.00021,2]
[331071942,1720063842013,-151.0,0.00021,2]
[331071944,1720063842023,-151.0,0.00021,2]
[331071966,1720063842247,-151.0,0.00021,2]
[331071968,1720063842257,-151.0,0.00021,2]
[331071970,1720063842267,-151.0,0.00021,2]
[331071972,1720063842277,-151.0,0.00021,2]
[331071974,1720063842287,-151.0,0.00021,2]
[331071976,1720063842297,-151.0,0.00021,2]
[331071978,1720063842306,-151.0,0.00021,2]
[331071980,1720063842316,-151.0,0.00021,2]
[331071982,1720063842326,-151.0,0.00021,2]
[331071984,1720063842335,-151.0,0.00021,2]
[331071986,1720063842344,-151.0,0.00021,2]
[331071988,1720063842354,-151.0,0.00021,2]
[331071989,1720063842365,-175.128304,0.00021,2]
[331071991,1720063842375,-175.128304,0.00021,2]
[331071994,1720063842385,-175.128304,0.00021,2]
[331071995,1720063842395,-175.128304,0.00021,2]
[331071997,1720063842404,-151.0,0.00021,2]
[331071999,1720063842413,-165.388241,0.00021,2]
[331072001,1720063842423,-364.15303,0.00021,2]
[331072003,1720063842432,-364.15303,0.00021,2]
[331072005,1720063842442,-364.15303,0.00021,2]
[331072007,1720063842452,-364.15303,0.00021,2]
[331072009,1720063842462,-151.0,0.00021,2]
[331072011,1720063842471,-161.309807,0.00021,2]
[331072013,1720063842480,-151.0,0.00021,2]
[331072015,1720063842490,-151.0,0.00021,2]
[331072018,1720063842502,-151.0,0.00021,2]
[331072020,1720063842512,-151.0,0.00021,2]
[331072022,1720063842522,-239.431002,0.00021,2]
[331072024,1720063842531,-151.0,0.00021,2]
[331072026,1720063842540,-151.0,0.00021,2]
[331072028,1720063842550,-1852.07386204,0.00021008,2]
[331072030,1720063842559,-200.0,0.00021008,2]
[331072032,1720063842569,-3128.79331985,0.00021101,2]
[331072034,1720063842578,-8271.30148148,0.00021108,2]
[331072036,1720063842588,-232.997428,0.0002111,2]
[331072037,1720063842598,-1145.440627,0.0002111,2]
[331072040,1720063842609,-808.120304,0.0002111,2]
[331072042,1720063842619,-698.992285,0.0002111,2]
[331072044,1720063842628,-1099.0,0.00021197,2]
[331072045,1720063842641,-500.0,0.00021233,2]
[331072047,1720063842651,-159.52704912,0.00021297,2]
[331072049,1720063842661,-150.0,0.00021338,2]
[331072051,1720063842672,-232.997428,0.00021364,2]
[331072054,1720063842682,-1145.440627,0.00021364,2]
[331072056,1720063842692,-808.120304,0.00021364,2]
[331072058,1720063842702,-698.992285,0.00021364,2]
[331072059,1720063842713,-200.442113,0.00021364,2]
[331072062,1720063842723,-500.0,0.0002137,2]
[331072064,1720063842734,-180.0,0.00021397,2]